[Event "*** Titled Tuesday Blitz"]
[Site "Chess.com"]
[Date "2021.03.16"]
[Round "5"]
[White "GameOverBro"]
[Black "MagzyPotato"]
[Result "1-0"]
[WhiteElo "2527"]
[BlackElo "2360"]
[TimeControl "180+1"]
[EndTime "10:49:12 PDT"]
[Termination "GameOverBro won by resignation"]

1. e4 {[%clk 0:03:00.9]} 1... c5 {[%clk 0:02:59.9]} 2. Ne2 {[%clk 0:03:00.8]}
2... Nc6 {[%clk 0:03:00.1]} 3. Nbc3 {[%clk 0:03:01]} 3... e5 {[%clk 0:02:59.9]}
4. Ng3 {[%clk 0:03:00.7]} 4... d6 {[%clk 0:02:59.3]} 5. Bc4 {[%clk 0:03:00.8]}
5... Nf6 {[%clk 0:02:52.8]} 6. d3 {[%clk 0:03:00.3]} 6... Be7 {[%clk 0:02:51.8]}
7. f4 {[%clk 0:02:59.2]} 7... exf4 {[%clk 0:02:50.6]} 8. Bxf4 {[%clk 0:02:58.7]}
8... Be6 {[%clk 0:02:50.8]} 9. O-O {[%clk 0:02:58]} 9... O-O {[%clk 0:02:48]}
10. Qd2 {[%clk 0:02:57.2]} 10... Nd4 {[%clk 0:02:48]} 11. Bxe6 {[%clk
0:02:51.6]} 11... fxe6 {[%clk 0:02:45.9]} 12. e5 {[%clk 0:02:51.9]} 12... dxe5
{[%clk 0:02:28.5]} 13. Bxe5 {[%clk 0:02:52.8]} 13... Ng4 {[%clk 0:02:23.9]} 14.
Rxf8+ {[%clk 0:02:38.9]} 14... Bxf8 {[%clk 0:02:24.8]} 15. Bf4 {[%clk 0:02:27]}
15... Qd6 {[%clk 0:02:18.3]} 16. Bxd6 {[%clk 0:02:26.7]} 1-0

[Event "*** Titled Tuesday Blitz"]
[Site "Chess.com"]
[Date "2021.03.16"]
[Round "5"]
[White "Manukyan_Artak"]
[Black "bennyficial"]
[Result "1-0"]
[WhiteElo "2394"]
[BlackElo "2216"]
[TimeControl "180+1"]
[EndTime "10:50:33 PDT"]
[Termination "Manukyan_Artak won by resignation"]

1. e4 {[%clk 0:03:00.9]} 1... c5 {[%clk 0:02:55]} 2. Nf3 {[%clk 0:03:00.2]} 2...
Nc6 {[%clk 0:02:53.9]} 3. c3 {[%clk 0:03:00]} 3... Nf6 {[%clk 0:02:52.6]} 4. e5
{[%clk 0:02:59.9]} 4... Nd5 {[%clk 0:02:52.8]} 5. d4 {[%clk 0:03:00.8]} 5...
cxd4 {[%clk 0:02:52.5]} 6. cxd4 {[%clk 0:03:01.7]} 6... d6 {[%clk 0:02:49.4]} 7.
Nc3 {[%clk 0:03:02.6]} 7... Nxc3 {[%clk 0:02:43]} 8. bxc3 {[%clk 0:03:03.5]}
8... dxe5 {[%clk 0:02:43.5]} 9. d5 {[%clk 0:03:03.8]} 9... Nb8 {[%clk
0:02:40.4]} 10. Nxe5 {[%clk 0:03:03.8]} 10... Nd7 {[%clk 0:02:40.5]} 11. Bb5
{[%clk 0:03:03]} 11... a6 {[%clk 0:02:40.3]} 12. Qf3 {[%clk 0:03:02.2]} 12...
Qa5 {[%clk 0:02:07.4]} 13. Bxd7+ {[%clk 0:02:47.5]} 13... Bxd7 {[%clk
0:02:07.3]} 14. Qxf7+ {[%clk 0:02:45.3]} 14... Kd8 {[%clk 0:02:07.5]} 15. O-O
{[%clk 0:02:44.7]} 15... Qxc3 {[%clk 0:01:45.8]} 16. Bf4 {[%clk 0:02:30.6]}
16... Be8 {[%clk 0:01:30.2]} 17. Qe6 {[%clk 0:02:24.1]} 17... Qc8 {[%clk
0:01:30.5]} 18. Qb6+ {[%clk 0:02:16.2]} 18... Qc7 {[%clk 0:01:26.5]} 19. Nf7+
{[%clk 0:02:09.8]} 1-0

[Event "*** Titled Tuesday Blitz"]
[Site "Chess.com"]
[Date "2021.03.16"]
[Round "5"]
[White "winniethepooh04"]
[Black "boasovietica"]
[Result "1-0"]
[WhiteElo "2271"]
[BlackElo "2441"]
[TimeControl "180+1"]
[EndTime "10:50:43 PDT"]
[Termination "winniethepooh04 won by resignation"]

1. d4 {[%clk 0:02:56.3]} 1... Nf6 {[%clk 0:02:59.7]} 2. Nf3 {[%clk 0:02:53.5]}
2... g6 {[%clk 0:02:59.8]} 3. Bf4 {[%clk 0:02:53.8]} 3... Bg7 {[%clk 0:02:56.2]}
4. e3 {[%clk 0:02:54.3]} 4... O-O {[%clk 0:02:50.2]} 5. Be2 {[%clk 0:02:54.4]}
5... d6 {[%clk 0:02:49.5]} 6. h3 {[%clk 0:02:54]} 6... b6 {[%clk 0:02:36.9]} 7.
O-O {[%clk 0:02:52.6]} 7... Bb7 {[%clk 0:02:36.9]} 8. c4 {[%clk 0:02:49.5]} 8...
Nbd7 {[%clk 0:02:37.1]} 9. Nc3 {[%clk 0:02:42.7]} 9... Ne4 {[%clk 0:02:31]} 10.
Nxe4 {[%clk 0:02:41.7]} 10... Bxe4 {[%clk 0:02:30]} 11. Nd2 {[%clk 0:02:42.2]}
11... Bb7 {[%clk 0:02:28.7]} 12. Bf3 {[%clk 0:02:42.7]} 12... Bxf3 {[%clk
0:01:58.7]} 13. Nxf3 {[%clk 0:02:43.6]} 13... Re8 {[%clk 0:01:57.4]} 14. Rc1
{[%clk 0:02:43.1]} 14... e5 {[%clk 0:01:57.3]} 15. Bh2 {[%clk 0:02:43.7]} 15...
exd4 {[%clk 0:01:50.7]} 16. exd4 {[%clk 0:02:44.6]} 16... Qf6 {[%clk 0:01:44.4]}
17. Qd2 {[%clk 0:02:39.1]} 17... Rad8 {[%clk 0:01:40.4]} 18. Rfe1 {[%clk
0:02:39.2]} 18... Rxe1+ {[%clk 0:01:39.2]} 19. Rxe1 {[%clk 0:02:38.5]} 19... c5
{[%clk 0:01:24.7]} 20. Bf4 {[%clk 0:02:31.5]} 20... Nb8 {[%clk 0:01:10.3]} 21.
Bg5 {[%clk 0:02:30.2]} 1-0

[Event "*** Titled Tuesday Blitz"]
[Site "Chess.com"]
[Date "2021.03.16"]
[Round "5"]
[White "renehp"]
[Black "QuintilianoR"]
[Result "0-1"]
[WhiteElo "2467"]
[BlackElo "2741"]
[TimeControl "180+1"]
[EndTime "10:51:30 PDT"]
[Termination "QuintilianoR won by resignation"]

1. e4 {[%clk 0:03:00.6]} 1... c5 {[%clk 0:02:59.2]} 2. Nf3 {[%clk 0:03:00.3]}
2... d6 {[%clk 0:02:59.7]} 3. d4 {[%clk 0:03:00.2]} 3... cxd4 {[%clk 0:03:00.6]}
4. Nxd4 {[%clk 0:03:00.8]} 4... Nf6 {[%clk 0:03:01.3]} 5. Nc3 {[%clk 0:02:59.6]}
5... a6 {[%clk 0:03:01.8]} 6. Be2 {[%clk 0:02:59.4]} 6... e5 {[%clk 0:03:01.6]}
7. Nb3 {[%clk 0:02:59.2]} 7... Be7 {[%clk 0:03:02.1]} 8. Be3 {[%clk 0:02:59.4]}
8... Be6 {[%clk 0:03:00.3]} 9. O-O {[%clk 0:02:58.6]} 9... O-O {[%clk
0:02:59.9]} 10. Qd3 {[%clk 0:02:53.2]} 10... Nbd7 {[%clk 0:02:55.1]} 11. Nd5
{[%clk 0:02:51.9]} 11... Bxd5 {[%clk 0:02:52.7]} 12. exd5 {[%clk 0:02:52.8]}
12... Rc8 {[%clk 0:02:53.3]} 13. c4 {[%clk 0:02:52.1]} 13... Ne8 {[%clk
0:02:53.4]} 14. f4 {[%clk 0:02:45.8]} 14... f5 {[%clk 0:02:34.5]} 15. fxe5
{[%clk 0:02:43.6]} 15... Nxe5 {[%clk 0:02:35.4]} 16. Qd4 {[%clk 0:01:58.9]}
16... g6 {[%clk 0:02:28.7]} 17. Qf4 {[%clk 0:01:55.4]} 17... Ng7 {[%clk
0:02:23.1]} 18. Rac1 {[%clk 0:01:54]} 18... Bf6 {[%clk 0:02:02.9]} 19. Nd4
{[%clk 0:01:51.5]} 19... g5 {[%clk 0:01:43.7]} 20. Qf2 {[%clk 0:01:47.4]} 20...
f4 {[%clk 0:01:43.9]} 21. Bd2 {[%clk 0:01:47.2]} 21... Qb6 {[%clk 0:01:43.4]}
22. Nf3 {[%clk 0:01:23.4]} 22... Nxf3+ {[%clk 0:01:39.4]} 23. Bxf3 {[%clk
0:01:20.9]} 23... Bd4 {[%clk 0:01:38.6]} 0-1

[Event "*** Titled Tuesday Blitz"]
[Site "Chess.com"]
[Date "2021.03.16"]
[Round "5"]
[White "alejogarcia1999"]
[Black "Soltan49"]
[Result "1-0"]
[WhiteElo "2503"]
[BlackElo "2219"]
[TimeControl "180+1"]
[EndTime "10:51:42 PDT"]
[Termination "alejogarcia1999 won by resignation"]

1. d4 {[%clk 0:03:00.9]} 1... Nf6 {[%clk 0:02:56.6]} 2. c4 {[%clk 0:03:01]} 2...
e6 {[%clk 0:02:56.9]} 3. Nc3 {[%clk 0:02:59.8]} 3... Bb4 {[%clk 0:02:57.3]} 4.
e3 {[%clk 0:03:00.2]} 4... d5 {[%clk 0:02:56.7]} 5. Nf3 {[%clk 0:03:00.1]} 5...
Bxc3+ {[%clk 0:02:55.6]} 6. bxc3 {[%clk 0:02:59.9]} 6... O-O {[%clk 0:02:56.5]}
7. Bd3 {[%clk 0:02:53]} 7... b6 {[%clk 0:02:56.2]} 8. O-O {[%clk 0:02:52.5]}
8... Ba6 {[%clk 0:02:54.7]} 9. Qe2 {[%clk 0:02:51.5]} 9... dxc4 {[%clk
0:02:50.7]} 10. Bxc4 {[%clk 0:02:51.1]} 10... Bxc4 {[%clk 0:02:50.9]} 11. Qxc4
{[%clk 0:02:52]} 11... Nbd7 {[%clk 0:02:38.7]} 12. Ba3 {[%clk 0:02:49.4]} 12...
Re8 {[%clk 0:02:38.6]} 13. Qc6 {[%clk 0:02:46.6]} 13... Nb8 {[%clk 0:02:38.5]}
14. Qxa8 {[%clk 0:02:45.9]} 14... Qd7 {[%clk 0:02:19.1]} 15. Qxa7 {[%clk
0:02:41]} 15... Ne4 {[%clk 0:02:18.7]} 16. Bb4 {[%clk 0:02:31.6]} 16... Qb5
{[%clk 0:02:06]} 17. Qxc7 {[%clk 0:02:26]} 17... Na6 {[%clk 0:02:00.2]} 18. Qe5
{[%clk 0:02:18.5]} 18... Qc6 {[%clk 0:01:29.9]} 19. a4 {[%clk 0:02:02.3]} 19...
Nc7 {[%clk 0:01:07.7]} 20. Rfd1 {[%clk 0:01:39.6]} 20... Nd5 {[%clk 0:00:57.7]}
21. Qxe4 {[%clk 0:01:38]} 1-0

[Event "*** Titled Tuesday Blitz"]
[Site "Chess.com"]
[Date "2021.03.16"]
[Round "5"]
[White "Dave_ChessMate"]
[Black "Darius321"]
[Result "0-1"]
[WhiteElo "2404"]
[BlackElo "2285"]
[TimeControl "180+1"]
[EndTime "10:51:49 PDT"]
[Termination "Darius321 won by resignation"]

1. e4 {[%clk 0:03:00.9]} 1... e5 {[%clk 0:02:57.1]} 2. Nf3 {[%clk 0:03:00.7]}
2... Nc6 {[%clk 0:02:56.9]} 3. Bc4 {[%clk 0:03:01.4]} 3... Bc5 {[%clk
0:02:56.2]} 4. c3 {[%clk 0:03:01.2]} 4... Nf6 {[%clk 0:02:55.5]} 5. d4 {[%clk
0:03:01.3]} 5... exd4 {[%clk 0:02:54.6]} 6. e5 {[%clk 0:03:01.6]} 6... d5 {[%clk
0:02:54.8]} 7. Bb5 {[%clk 0:03:01]} 7... Ne4 {[%clk 0:02:54.1]} 8. cxd4 {[%clk
0:03:01.3]} 8... Bb4+ {[%clk 0:02:50.6]} 9. Bd2 {[%clk 0:02:54.1]} 9... Nxd2
{[%clk 0:02:46.2]} 10. Nbxd2 {[%clk 0:02:54]} 10... O-O {[%clk 0:02:46]} 11. O-O
{[%clk 0:02:53.3]} 11... Bg4 {[%clk 0:02:42.4]} 12. Bxc6 {[%clk 0:02:19.5]}
12... bxc6 {[%clk 0:02:28.8]} 13. Rc1 {[%clk 0:02:19.1]} 13... Bxd2 {[%clk
0:02:26.1]} 14. Qxd2 {[%clk 0:02:15.8]} 14... Bxf3 {[%clk 0:02:25.4]} 15. gxf3
{[%clk 0:02:16.7]} 15... f6 {[%clk 0:02:21.3]} 16. f4 {[%clk 0:02:11.7]} 16...
fxe5 {[%clk 0:02:18]} 17. fxe5 {[%clk 0:02:11.8]} 17... Qh4 {[%clk 0:02:07.2]}
18. f4 {[%clk 0:02:02.8]} 18... Rf5 {[%clk 0:01:54]} 19. Rxc6 {[%clk 0:01:55.1]}
19... Raf8 {[%clk 0:01:53.2]} 20. Qf2 {[%clk 0:01:49]} 20... Rxf4 {[%clk
0:01:08.6]} 21. Qg2 {[%clk 0:01:48.9]} 21... Rxf1+ {[%clk 0:01:03.2]} 22. Qxf1
{[%clk 0:01:34.8]} 22... Qxd4+ {[%clk 0:00:59.6]} 0-1

[Event "*** Titled Tuesday Blitz"]
[Site "Chess.com"]
[Date "2021.03.16"]
[Round "5"]
[White "Natalya_Buksa"]
[Black "jraosam"]
[Result "1-0"]
[WhiteElo "2492"]
[BlackElo "1893"]
[TimeControl "180+1"]
[EndTime "10:52:42 PDT"]
[Termination "Natalya_Buksa won on time"]

1. d4 {[%clk 0:03:00.9]} 1... d5 {[%clk 0:02:58.7]} 2. Nc3 {[%clk 0:02:59.9]}
2... Nf6 {[%clk 0:02:56]} 3. Bf4 {[%clk 0:03:00.4]} 3... c6 {[%clk 0:02:52.9]}
4. e3 {[%clk 0:03:00.3]} 4... e6 {[%clk 0:02:49.5]} 5. Nf3 {[%clk 0:03:00.7]}
5... Nbd7 {[%clk 0:02:48.8]} 6. Bd3 {[%clk 0:03:00.9]} 6... Nh5 {[%clk
0:02:48.1]} 7. Bg5 {[%clk 0:02:59.3]} 7... f6 {[%clk 0:02:47.6]} 8. Bh4 {[%clk
0:02:59.3]} 8... g6 {[%clk 0:02:47.5]} 9. Qe2 {[%clk 0:02:52.7]} 9... Qb6 {[%clk
0:02:41.8]} 10. O-O-O {[%clk 0:02:51.7]} 10... Bb4 {[%clk 0:02:37.8]} 11. Nb1
{[%clk 0:02:50.8]} 11... e5 {[%clk 0:02:30]} 12. dxe5 {[%clk 0:02:31.2]} 12...
fxe5 {[%clk 0:02:29.4]} 13. g4 {[%clk 0:02:21.2]} 13... Ng7 {[%clk 0:02:08.4]}
14. e4 {[%clk 0:02:17.7]} 14... d4 {[%clk 0:01:54.4]} 15. Bc4 {[%clk 0:02:17.2]}
15... Qc7 {[%clk 0:01:45.9]} 16. Ng5 {[%clk 0:02:08.9]} 16... b5 {[%clk
0:01:18.2]} 17. Bf7+ {[%clk 0:02:08]} 17... Kf8 {[%clk 0:01:17]} 18. Qf3 {[%clk
0:02:05.5]} 18... Be7 {[%clk 0:00:16.4]} 19. Nxh7+ {[%clk 0:01:57.1]} 19... Rxh7
{[%clk 0:00:09.2]} 20. Bxg6+ {[%clk 0:01:57.2]} 20... Kg8 {[%clk 0:00:04.1]} 21.
Bxh7+ {[%clk 0:01:54.8]} 21... Kxh7 {[%clk 0:00:04.2]} 22. Bxe7 {[%clk
0:01:54.7]} 22... Nc5 {[%clk 0:00:03.6]} 23. Bxc5 {[%clk 0:01:53.7]} 23... Be6
{[%clk 0:00:01.7]} 24. Nd2 {[%clk 0:01:46.6]} 24... Qa5 {[%clk 0:00:01.4]} 25.
a3 {[%clk 0:01:44.8]} 1-0

[Event "*** Titled Tuesday Blitz"]
[Site "Chess.com"]
[Date "2021.03.16"]
[Round "5"]
[White "atwalcb"]
[Black "ChelsieMonica"]
[Result "1-0"]
[WhiteElo "2544"]
[BlackElo "2336"]
[TimeControl "180+1"]
[EndTime "10:52:55 PDT"]
[Termination "atwalcb won on time"]

1. d4 {[%clk 0:03:00.9]} 1... Nf6 {[%clk 0:02:59.1]} 2. Bg5 {[%clk 0:03:00.3]}
2... c5 {[%clk 0:02:58.6]} 3. d5 {[%clk 0:02:59.5]} 3... d6 {[%clk 0:02:57.2]}
4. Nc3 {[%clk 0:02:54.9]} 4... e5 {[%clk 0:02:57.3]} 5. dxe6 {[%clk 0:02:52.4]}
5... Bxe6 {[%clk 0:02:57.2]} 6. e4 {[%clk 0:02:49.7]} 6... Nc6 {[%clk
0:02:56.3]} 7. Nd5 {[%clk 0:02:45.9]} 7... Bxd5 {[%clk 0:02:52]} 8. exd5 {[%clk
0:02:45]} 8... Ne5 {[%clk 0:02:51]} 9. Bb5+ {[%clk 0:02:41.8]} 9... Ned7 {[%clk
0:02:50.9]} 10. Ne2 {[%clk 0:02:34.7]} 10... Be7 {[%clk 0:02:47.2]} 11. a4
{[%clk 0:02:26.2]} 11... O-O {[%clk 0:02:46.5]} 12. O-O {[%clk 0:02:25.5]} 12...
a6 {[%clk 0:02:46]} 13. Bc4 {[%clk 0:02:06.8]} 13... Re8 {[%clk 0:02:41.8]} 14.
Ng3 {[%clk 0:02:02.3]} 14... Bf8 {[%clk 0:02:40.4]} 15. Nf5 {[%clk 0:01:53.2]}
15... h6 {[%clk 0:02:34.8]} 16. Bf4 {[%clk 0:01:53.2]} 16... Ne5 {[%clk
0:02:31.4]} 17. Ne3 {[%clk 0:01:48.8]} 17... g5 {[%clk 0:02:22.1]} 18. Bg3
{[%clk 0:01:45.3]} 18... Ne4 {[%clk 0:02:10.4]} 19. Bd3 {[%clk 0:01:42.7]} 19...
Nxd3 {[%clk 0:02:02.8]} 20. Qxd3 {[%clk 0:01:42]} 20... Qf6 {[%clk 0:01:54.8]}
21. c3 {[%clk 0:01:38.1]} 21... Rad8 {[%clk 0:01:44.6]} 22. f3 {[%clk 0:01:33]}
22... Nxg3 {[%clk 0:01:37.8]} 23. hxg3 {[%clk 0:01:32.8]} 23... Qe5 {[%clk
0:01:30.1]} 24. Ng4 {[%clk 0:01:29.1]} 24... Qxg3 {[%clk 0:01:17.6]} 25. Nf6+
{[%clk 0:01:25.5]} 1-0

[Event "*** Titled Tuesday Blitz"]
[Site "Chess.com"]
[Date "2021.03.16"]
[Round "5"]
[White "GelmanAlexander"]
[Black "HrvojeZagreb"]
[Result "1-0"]
[WhiteElo "2571"]
[BlackElo "2295"]
[TimeControl "180+1"]
[EndTime "10:52:58 PDT"]
[Termination "GelmanAlexander won by resignation"]

1. d4 {[%clk 0:03:00.9]} 1... e6 {[%clk 0:00:56.5]} 2. Nc3 {[%clk 0:02:59.9]}
2... d5 {[%clk 0:00:55.6]} 3. Bf4 {[%clk 0:03:00]} 3... c6 {[%clk 0:00:52.6]} 4.
e4 {[%clk 0:02:59.4]} 4... dxe4 {[%clk 0:00:52.3]} 5. Nxe4 {[%clk 0:03:00.3]}
5... Nf6 {[%clk 0:00:49.7]} 6. Nxf6+ {[%clk 0:03:00.3]} 6... Qxf6 {[%clk
0:00:49.4]} 7. Qd2 {[%clk 0:03:00.2]} 7... Nd7 {[%clk 0:00:45.9]} 8. Nf3 {[%clk
0:02:58.2]} 8... h6 {[%clk 0:00:45]} 9. O-O-O {[%clk 0:02:56.2]} 9... g5 {[%clk
0:00:42.4]} 10. Bg3 {[%clk 0:02:52.6]} 10... Bg7 {[%clk 0:00:37.8]} 11. h4
{[%clk 0:02:49.2]} 11... g4 {[%clk 0:00:36.2]} 12. Ne5 {[%clk 0:02:49]} 12... h5
{[%clk 0:00:33.1]} 13. Kb1 {[%clk 0:02:44.3]} 13... Nb6 {[%clk 0:00:31.6]} 14.
Bf4 {[%clk 0:02:35.7]} 14... Bh6 {[%clk 0:00:27.7]} 15. Bg5 {[%clk 0:02:28]}
15... Bxg5 {[%clk 0:00:27]} 16. hxg5 {[%clk 0:02:28.9]} 16... Qg7 {[%clk
0:00:20.6]} 17. g6 {[%clk 0:02:11.8]} 17... fxg6 {[%clk 0:00:15.8]} 18. Bd3
{[%clk 0:02:11.2]} 18... Rh6 {[%clk 0:00:14.5]} 19. Qg5 {[%clk 0:02:05.3]} 19...
Nd5 {[%clk 0:00:10.3]} 20. Bxg6+ {[%clk 0:02:03]} 20... Kf8 {[%clk 0:00:09]} 21.
Rxh5 {[%clk 0:01:58]} 21... Rxh5 {[%clk 0:00:08.3]} 22. Qxh5 {[%clk 0:01:57.6]}
22... Nf6 {[%clk 0:00:07.7]} 23. Qg5 {[%clk 0:01:47.6]} 23... Bd7 {[%clk
0:00:07.8]} 24. Qxf6+ {[%clk 0:01:33.6]} 24... Qxf6 {[%clk 0:00:07.3]} 25. Nxd7+
{[%clk 0:01:34]} 25... Ke7 {[%clk 0:00:08.2]} 26. Nxf6 {[%clk 0:01:34.2]} 26...
Kxf6 {[%clk 0:00:09.1]} 27. Be4 {[%clk 0:01:32.3]} 27... Rd8 {[%clk 0:00:09.7]}
28. c3 {[%clk 0:01:31.8]} 28... c5 {[%clk 0:00:09.3]} 29. Kc2 {[%clk 0:01:31.2]}
29... b6 {[%clk 0:00:09.7]} 30. dxc5 {[%clk 0:01:30.6]} 30... Rxd1 {[%clk
0:00:10.4]} 31. Kxd1 {[%clk 0:01:30.3]} 31... bxc5 {[%clk 0:00:11.3]} 32. Ke2
{[%clk 0:01:30.5]} 32... Ke5 {[%clk 0:00:12.2]} 33. Bc2 {[%clk 0:01:30]} 1-0

[Event "*** Titled Tuesday Blitz"]
[Site "Chess.com"]
[Date "2021.03.16"]
[Round "5"]
[White "nss13"]
[Black "vladgoncharov"]
[Result "0-1"]
[WhiteElo "2604"]
[BlackElo "2455"]
[TimeControl "180+1"]
[EndTime "10:53:00 PDT"]
[Termination "vladgoncharov won by resignation"]

1. e4 {[%clk 0:03:00.9]} 1... e6 {[%clk 0:02:59.4]} 2. d4 {[%clk 0:03:00.5]}
2... d5 {[%clk 0:03:00]} 3. Nd2 {[%clk 0:03:01.2]} 3... Be7 {[%clk 0:02:59.7]}
4. e5 {[%clk 0:02:59.8]} 4... c5 {[%clk 0:02:59]} 5. c3 {[%clk 0:03:00]} 5...
cxd4 {[%clk 0:02:54]} 6. cxd4 {[%clk 0:03:00.9]} 6... Qb6 {[%clk 0:02:54.3]} 7.
Qg4 {[%clk 0:02:38.3]} 7... Kf8 {[%clk 0:02:50]} 8. Ndf3 {[%clk 0:02:08.9]} 8...
Bd7 {[%clk 0:02:41.6]} 9. Bd3 {[%clk 0:02:06.1]} 9... Bb5 {[%clk 0:02:40.8]} 10.
Bxb5 {[%clk 0:02:05.5]} 10... Qxb5 {[%clk 0:02:40.7]} 11. Ne2 {[%clk 0:02:05.1]}
11... Nc6 {[%clk 0:02:38.4]} 12. h4 {[%clk 0:02:03.9]} 12... h5 {[%clk
0:02:30.1]} 13. Qf4 {[%clk 0:02:03.5]} 13... Nh6 {[%clk 0:02:30]} 14. Ng3 {[%clk
0:01:55.9]} 14... g6 {[%clk 0:02:20.2]} 15. Ng5 {[%clk 0:01:47.8]} 15... Kg7
{[%clk 0:02:16.5]} 16. a4 {[%clk 0:01:40]} 16... Qb4+ {[%clk 0:02:07.4]} 17. Bd2
{[%clk 0:01:27.8]} 17... Qxd4 {[%clk 0:02:06.9]} 18. Qxd4 {[%clk 0:01:26.5]}
18... Nxd4 {[%clk 0:02:06.3]} 19. O-O {[%clk 0:01:25.6]} 19... Nb3 {[%clk
0:02:01.9]} 20. Rad1 {[%clk 0:01:25]} 20... Nxd2 {[%clk 0:02:01.4]} 21. Rxd2
{[%clk 0:01:25.9]} 21... Rhc8 {[%clk 0:02:00.6]} 22. Ne2 {[%clk 0:01:24.6]}
22... Rc4 {[%clk 0:01:58.4]} 23. Rd4 {[%clk 0:01:21.3]} 23... Rac8 {[%clk
0:01:52.8]} 24. b3 {[%clk 0:01:17.6]} 24... Rc2 {[%clk 0:01:52.6]} 25. Ng3
{[%clk 0:01:09]} 25... Rb2 {[%clk 0:01:44.2]} 26. Rd3 {[%clk 0:01:08.1]} 26...
Ng4 {[%clk 0:01:37.5]} 27. Nf3 {[%clk 0:00:45.4]} 27... Rcc2 {[%clk 0:01:29.2]}
28. Nh1 {[%clk 0:00:45.6]} 28... Bc5 {[%clk 0:01:08.9]} 29. Nd4 {[%clk
0:00:42.2]} 29... Bxd4 {[%clk 0:01:06.9]} 30. Rxd4 {[%clk 0:00:43.1]} 30... Nxe5
{[%clk 0:01:06.9]} 31. Rb4 {[%clk 0:00:43.8]} 31... b6 {[%clk 0:01:06.7]} 32. a5
{[%clk 0:00:44.2]} 32... Nc6 {[%clk 0:01:05.3]} 0-1

[Event "*** Titled Tuesday Blitz"]
[Site "Chess.com"]
[Date "2021.03.16"]
[Round "5"]
[White "enriquetejedor"]
[Black "DrMamaliga"]
[Result "1-0"]
[WhiteElo "2546"]
[BlackElo "2365"]
[TimeControl "180+1"]
[EndTime "10:53:03 PDT"]
[Termination "enriquetejedor won by checkmate"]

1. d4 {[%clk 0:01:26.7]} 1... d5 {[%clk 0:02:58.9]} 2. c4 {[%clk 0:01:26]} 2...
dxc4 {[%clk 0:02:59]} 3. e3 {[%clk 0:01:26]} 3... Nf6 {[%clk 0:02:57.6]} 4. Bxc4
{[%clk 0:01:26.6]} 4... e6 {[%clk 0:02:57.7]} 5. Nc3 {[%clk 0:01:27]} 5... a6
{[%clk 0:02:58.3]} 6. Nf3 {[%clk 0:01:26.7]} 6... Bd6 {[%clk 0:02:58]} 7. O-O
{[%clk 0:01:27]} 7... O-O {[%clk 0:02:58.1]} 8. e4 {[%clk 0:01:27.1]} 8... b5
{[%clk 0:02:55.6]} 9. Bd3 {[%clk 0:01:26.8]} 9... Be7 {[%clk 0:02:54.9]} 10. e5
{[%clk 0:01:25.5]} 10... Nd5 {[%clk 0:02:53.6]} 11. Qe2 {[%clk 0:01:20.8]} 11...
Bb7 {[%clk 0:02:49.8]} 12. Qe4 {[%clk 0:01:21.1]} 12... g6 {[%clk 0:02:49.5]}
13. Qg4 {[%clk 0:01:21.1]} 13... c5 {[%clk 0:02:44.6]} 14. Bh6 {[%clk
0:01:06.8]} 14... Re8 {[%clk 0:02:43.9]} 15. h4 {[%clk 0:01:05.5]} 15... cxd4
{[%clk 0:02:40.2]} 16. Ne4 {[%clk 0:01:05.2]} 16... Nd7 {[%clk 0:02:29.6]} 17.
h5 {[%clk 0:00:45.2]} 17... Bf8 {[%clk 0:02:17]} 18. hxg6 {[%clk 0:00:37]} 18...
Bxh6 {[%clk 0:02:04.2]} 19. gxf7+ {[%clk 0:00:30.6]} 19... Kxf7 {[%clk
0:02:05.1]} 20. Nd6+ {[%clk 0:00:29.8]} 20... Kf8 {[%clk 0:01:58.9]} 21. Bxh7
{[%clk 0:00:23.1]} 21... N7f6 {[%clk 0:01:28.5]} 22. Qg6 {[%clk 0:00:18.4]}
22... Nxh7 {[%clk 0:00:56.3]} 23. Qf7# {[%clk 0:00:17.1]} 1-0

[Event "*** Titled Tuesday Blitz"]
[Site "Chess.com"]
[Date "2021.03.16"]
[Round "5"]
[White "kunaevchess"]
[Black "JiiHart"]
[Result "1-0"]
[WhiteElo "2364"]
[BlackElo "2070"]
[TimeControl "180+1"]
[EndTime "10:53:17 PDT"]
[Termination "kunaevchess won by resignation"]

1. e4 {[%clk 0:03:00.9]} 1... c5 {[%clk 0:02:58.7]} 2. Nf3 {[%clk 0:03:01.1]}
2... Nc6 {[%clk 0:02:59]} 3. d4 {[%clk 0:03:01.3]} 3... cxd4 {[%clk 0:02:58.7]}
4. Nxd4 {[%clk 0:03:02]} 4... Nf6 {[%clk 0:02:59.3]} 5. Nc3 {[%clk 0:03:02.6]}
5... d6 {[%clk 0:02:59.5]} 6. Bg5 {[%clk 0:03:02]} 6... e6 {[%clk 0:02:59]} 7.
Qd2 {[%clk 0:03:02.2]} 7... a6 {[%clk 0:02:59.4]} 8. O-O-O {[%clk 0:03:01.8]}
8... Bd7 {[%clk 0:02:59.6]} 9. f4 {[%clk 0:03:00.3]} 9... h6 {[%clk 0:02:58]}
10. Bh4 {[%clk 0:02:59.4]} 10... g5 {[%clk 0:02:56.7]} 11. fxg5 {[%clk
0:02:57.4]} 11... Ng4 {[%clk 0:02:56.2]} 12. Nf3 {[%clk 0:02:51.6]} 12... Be7
{[%clk 0:02:41]} 13. Be2 {[%clk 0:02:49.2]} 13... Nge5 {[%clk 0:02:18.2]} 14.
Kb1 {[%clk 0:02:16.4]} 14... b5 {[%clk 0:02:11.1]} 15. a3 {[%clk 0:01:33.9]}
15... Rc8 {[%clk 0:02:06.8]} 16. Rhf1 {[%clk 0:01:32.5]} 16... Nxf3 {[%clk
0:01:25]} 17. Bxf3 {[%clk 0:01:31.3]} 17... hxg5 {[%clk 0:01:21.4]} 18. Bg3
{[%clk 0:01:30.1]} 18... Ne5 {[%clk 0:01:19.5]} 19. Be2 {[%clk 0:01:26]} 19...
Rc5 {[%clk 0:00:29]} 20. Qe3 {[%clk 0:01:25.2]} 20... Nc4 {[%clk 0:00:14.6]} 21.
Bxc4 {[%clk 0:01:21.6]} 21... Rxc4 {[%clk 0:00:14.8]} 22. Bxd6 {[%clk
0:01:14.8]} 22... Bxd6 {[%clk 0:00:11.5]} 23. Rxd6 {[%clk 0:01:14.9]} 23... Qc7
{[%clk 0:00:10.2]} 24. Rfd1 {[%clk 0:01:11.1]} 24... Bc6 {[%clk 0:00:08.6]} 25.
Qxg5 {[%clk 0:01:02.2]} 1-0